Workbook

Sheet uk_postcode_map
B2: UK by Postcodes | F2: Measure | I2: Colors | M2: www.cs-analytics.de
C25: =control!D14 -> 0% to 2%
C26: =control!D15 -> 2% to 4%
C27: =control!D16 -> 4% to 6%
C28: =control!D17 -> 6% to 8%
C29: =control!D18 -> 8% to 10%
C30: =control!D19 -> 10% to 12%
C31: =control!D20 -> 12% to 14%
C32: =control!D21 -> 14% to 16%
C33: =control!D22 -> 16% to 18%
C34: =control!D23 -> 18% or more

Sheet data
B2: Data | H2: Source: none (Dummy data) | J2: Selection / Shape Definition
B4: The source data | J4: Calculation of selected data, shape name definition and shape index
B5: No. | C5: Postal Area | D5: Code | E5: Measure 1 | F5: Measure 2 | G5: Measure 3 | H5: Selection | J5: Selection | K5: Shape Names | L5: Shape Index
B6: 1 | C6: Aberdeen | D6: AB | E6: 0.0706 | F6: 0.0352 | G6: 0.1027 | H6: =INDEX(E6:G6,,control!$C$10) -> 0.0706 | J6: =H6 -> 0.0706 | K6: S_AB | L6: 114
B7: =B6+1 -> 2 | C7: St Albans | D7: AL | E7: 0.1056 | F7: 0.1697 | G7: 0.0159 | H7: =INDEX(E7:G7,,control!$C$10) -> 0.1056 | J7: 0.1056 | K7: S_AL | L7: 47
B8: 3 | C8: Birmingham | D8: B | E8: 0.0231 | F8: 0.1422 | G8: 0.0724 | H8: =INDEX(E8:G8,,control!$C$10) -> 0.0231 | J8: 0.0231 | K8: S_B | L8: 59
B9: 4 | C9: Bath | D9: BA | E9: 0.0325 | F9: 0.127 | G9: 0.0205 | H9: =INDEX(E9:G9,,control!$C$10) -> 0.0325 | J9: 0.0325 | K9: S_BA | L9: 17
B10: 5 | C10: Blackburn | D10: BB | E10: 0.0941 | F10: 0.1192 | G10: 0.1521 | H10: =INDEX(E10:G10,,control!$C$10) -> 0.0941 | J10: 0.0941 | K10: S_BB | L10: 90
B11: 6 | C11: Bradford | D11: BD | E11: 0.0539 | F11: 0.0854 | G11: 0.0432 | H11: =INDEX(E11:G11,,control!$C$10) -> 0.0539 | J11: 0.0539 | K11: S_BD | L11: 91
B12: 7 | C12: Bournemouth | D12: BH | E12: 0.1364 | F12: 0.1406 | G12: 0.1149 | H12: =INDEX(E12:G12,,control!$C$10) -> 0.1364 | J12: 0.1364 | K12: S_BH | L12: 11
B13: 8 | C13: Bolton | D13: BL | E13: 0.1145 | F13: 0.0743 | G13: 0.1668 | H13: =INDEX(E13:G13,,control!$C$10) -> 0.1145 | J13: 0.1145 | K13: S_BL | L13: 85
B14: 9 | C14: Brighton | D14: BN | E14: 0.0961 | F14: 0.1051 | G14: 0.096 | H14: =INDEX(E14:G14,,control!$C$10) -> 0.0961 | J14: 0.0961 | K14: S_BN | L14: 13
B15: 10 | C15: Bromley | D15: BR | E15: 0.1402 | F15: 0.1022 | G15: 0.0869 | H15: =INDEX(E15:G15,,control!$C$10) -> 0.1402 | J15: 0.1402 | K15: S_BR | L15: 28
B16: 11 | C16: Bristol | D16: BS | E16: 0.1689 | F16: 0.1839 | G16: 0.003 | H16: =INDEX(E16:G16,,control!$C$10) -> 0.1689 | J16: 0.1689 | K16: S_BS | L16: 18
B17: 12 | C17: Carlisle | D17: CA | E17: 0.0094 | F17: 0.1629 | G17: 0.0912 | H17: =INDEX(E17:G17,,control!$C$10) -> 0.0094 | J17: 0.0094 | K17: S_CA | L17: 100
B18: 13 | C18: Cambridge | D18: CB | E18: 0.1971 | F18: 0.0265 | G18: 0.1218 | H18: =INDEX(E18:G18,,control!$C$10) -> 0.1971 | J18: 0.1971 | K18: S_CB | L18: 55
B19: 14 | C19: Cardiff | D19: CF | E19: 0.1034 | F19: 0.0946 | G19: 0.193 | H19: =INDEX(E19:G19,,control!$C$10) -> 0.1034 | J19: 0.1034 | K19: S_CF | L19: 68
B20: 15 | C20: Chester | D20: CH | E20: 0.0934 | F20: 0.0734 | G20: 0.1209 | H20: =INDEX(E20:G20,,control!$C$10) -> 0.0934 | J20: 0.0934 | K20: S_CH | L20: 78
B21: 16 | C21: Chelmsford | D21: CM | E21: 0.1877 | F21: 0.1501 | G21: 0.0985 | H21: =INDEX(E21:G21,,control!$C$10) -> 0.1877 | J21: 0.1877 | K21: S_CM | L21: 49
B22: 17 | C22: Colchester | D22: CO | E22: 0.0101 | F22: 0.0166 | G22: 0.1218 | H22: =INDEX(E22:G22,,control!$C$10) -> 0.0101 | J22: 0.0101 | K22: S_CO | L22: 53
B23: 18 | C23: Croydon | D23: CR | E23: 0.1142 | F23: 0.1602 | G23: 0.0992 | H23: =INDEX(E23:G23,,control!$C$10) -> 0.1142 | J23: 0.1142 | K23: S_CR | L23: 26
B24: 19 | C24: Canterbury | D24: CT | E24: 0.1134 | F24: 0.1168 | G24: 0.1067 | H24: =INDEX(E24:G24,,control!$C$10) -> 0.1134 | J24: 0.1134 | K24: S_CT | L24: 15
B25: 20 | C25: Coventry | D25: CV | E25: 0.0994 | F25: 0.1758 | G25: 0.0187 | H25: =INDEX(E25:G25,,control!$C$10) -> 0.0994 | J25: 0.0994 | K25: S_CV | L25: 58
B26: 21 | C26: Crewe | D26: CW | E26: 0.0012 | F26: 0.0046 | G26: 0.0327 | H26: =INDEX(E26:G26,,control!$C$10) -> 0.0012 | J26: 0.0012 | K26: S_CW | L26: 76
B27: 22 | C27: Dartford | D27: DA | E27: 0.0697 | F27: 0.0146 | G27: 0.1815 | H27: =INDEX(E27:G27,,control!$C$10) -> 0.0697 | J27: 0.0697 | K27: S_DA | L27: 29
B28: 23 | C28: Dundee | D28: DD | E28: 0.1679 | F28: 0.1806 | G28: 0.1987 | H28: =INDEX(E28:G28,,control!$C$10) -> 0.1679 | J28: 0.1679 | K28: S_DD | L28: 113
B29: 24 | C29: Derby | D29: DE | E29: 0.0625 | F29: 0.1845 | G29: 0.1605 | H29: =INDEX(E29:G29,,control!$C$10) -> 0.0625 | J29: 0.0625 | K29: S_DE | L29: 66
B30: 25 | C30: Dumfries | D30: DG | E30: 0.1301 | F30: 0.0821 | G30: 0.0678 | H30: =INDEX(E30:G30,,control!$C$10) -> 0.1301 | J30: 0.1301 | K30: S_DG | L30: 104
B31: 26 | C31: Durham | D31: DH | E31: 0.0834 | F31: 0.1185 | G31: 0.0585 | H31: =INDEX(E31:G31,,control!$C$10) -> 0.0834 | J31: 0.0834 | K31: S_DH | L31: 101
B32: 27 | C32: Darlington | D32: DL | E32: 0.1138 | F32: 0.0646 | G32: 0.0688 | H32: =INDEX(E32:G32,,control!$C$10) -> 0.1138 | J32: 0.1138 | K32: S_DL | L32: 97
B33: 28 | C33: Doncaster | D33: DN | E33: 0.0014 | F33: 0.1433 | G33: 0.1393 | H33: =INDEX(E33:G33,,control!$C$10) -> 0.0014 | J33: 0.0014 | K33: S_DN | L33: 64
B34: 29 | C34: Dorchester | D34: DT | E34: 0.1273 | F34: 0.0842 | G34: 0.119 | H34: =INDEX(E34:G34,,control!$C$10) -> 0.1273 | J34: 0.1273 | K34: S_DT | L34: 10
B35: 30 | C35: Dudley | D35: DY | E35: 0.1493 | F35: 0.0651 | G35: 0.1934 | H35: =INDEX(E35:G35,,control!$C$10) -> 0.1493 | J35: 0.1493 | K35: S_DY | L35: 72
B36: 31 | C36: London E | D36: E | E36: 0.0416 | F36: 0.1572 | G36: 0.0343 | H36: =INDEX(E36:G36,,control!$C$10) -> 0.0416 | J36: 0.0416 | K36: S_E | L36: 121
B37: 32 | C37: London EC | D37: EC | E37: 0.1347 | F37: 0.1901 | G37: 0.0978 | H37: =INDEX(E37:G37,,control!$C$10) -> 0.1347 | J37: 0.1347 | K37: S_EC | L37: 123
B38: 33 | C38: Edinburgh | D38: EH | E38: 0.1228 | F38: 0.1355 | G38: 0.0917 | H38: =INDEX(E38:G38,,control!$C$10) -> 0.1228 | J38: =H38 -> 0.1228 | K38: S_EH | L38: 108
B39: =B38+1 -> 34 | C39: Enfield | D39: EN | E39: 0.0355 | F39: 0.0768 | G39: 0.0285 | H39: =INDEX(E39:G39,,control!$C$10) -> 0.0355 | J39: 0.0355 | K39: S_EN | L39: 37
B40: 35 | C40: Exeter | D40: EX | E40: 0.169 | F40: 0.0049 | G40: 0.1861 | H40: =INDEX(E40:G40,,control!$C$10) -> 0.169 | J40: 0.169 | K40: S_EX | L40: 8
B41: 36 | C41: Falkirk and Stirling | D41: FK | E41: 0.1788 | F41: 0.1208 | G41: 0.0099 | H41: =INDEX(E41:G41,,control!$C$10) -> 0.1788 | J41: 0.1788 | K41: S_FK | L41: 109
B42: 37 | C42: Fylde | D42: FY | E42: 0.0943 | F42: 0.1799 | G42: 0.0289 | H42: =INDEX(E42:G42,,control!$C$10) -> 0.0943 | J42: 0.0943 | K42: S_FY | L42: 98
B43: 38 | C43: Glasgow | D43: G | E43: 0.0787 | F43: 0.1043 | G43: 0.1789 | H43: =INDEX(E43:G43,,control!$C$10) -> 0.0787 | J43: 0.0787 | K43: S_G | L43: 111
B44: 39 | C44: Gloucester | D44: GL | E44: 0.0952 | F44: 0.1824 | G44: 0.0662 | H44: =INDEX(E44:G44,,control!$C$10) -> 0.0952 | J44: 0.0952 | K44: S_GL | L44: 41
B45: 40 | C45: Guildford | D45: GU | E45: 0.0967 | F45: 0.0144 | G45: 0.1419 | H45: =INDEX(E45:G45,,control!$C$10) -> 0.0967 | J45: 0.0967 | K45: S_GU | L45: 21
B46: 41 | C46: Harrow | D46: HA | E46: 0.0828 | F46: 0.02 | G46: 0.0202 | H46: =INDEX(E46:G46,,control!$C$10) -> 0.0828 | J46: 0.0828 | K46: S_HA | L46: 34
B47: 42 | C47: Huddersfield | D47: HD | E47: 0.0625 | F47: 0.1652 | G47: 0.0571 | H47: =INDEX(E47:G47,,control!$C$10) -> 0.0625 | J47: 0.0625 | K47: S_HD | L47: 86
B48: 43 | C48: Harrogate | D48: HG | E48: 0.0785 | F48: 0.0042 | G48: 0.0765 | H48: =INDEX(E48:G48,,control!$C$10) -> 0.0785 | J48: 0.0785 | K48: S_HG | L48: 95
B49: 44 | C49: Hemel Hempstead | D49: HP | E49: 0.1088 | F49: 0.1456 | G49: 0.0532 | H49: =INDEX(E49:G49,,control!$C$10) -> 0.1088 | J49: 0.1088 | K49: S_HP | L49: 39
B50: 45 | C50: Hereford | D50: HR | E50: 0.0596 | F50: 0.1534 | G50: 0.0339 | H50: =INDEX(E50:G50,,control!$C$10) -> 0.0596 | J50: 0.0596 | K50: S_HR | L50: 42
B51: 46 | C51: Outer Hebrides | D51: HS | E51: 0.1016 | F51: 0.0139 | G51: 0.1936 | H51: =INDEX(E51:G51,,control!$C$10) -> 0.1016 | J51: 0.1016 | K51: S_HS | L51: 118
B52: 47 | C52: Hull | D52: HU | E52: 0.0072 | F52: 0.1286 | G52: 0.1941 | H52: =INDEX(E52:G52,,control!$C$10) -> 0.0072 | J52: 0.0072 | K52: S_HU | L52: 93
B53: 48 | C53: Halifax | D53: HX | E53: 0.0856 | F53: 0.0449 | G53: 0.1351 | H53: =INDEX(E53:G53,,control!$C$10) -> 0.0856 | J53: 0.0856 | K53: S_HX | L53: 87
B54: 49 | C54: Ilford | D54: IG | E54: 0.1138 | F54: 0.077 | G54: 0.1595 | H54: =INDEX(E54:G54,,control!$C$10) -> 0.1138 | J54: 0.1138 | K54: S_IG | L54: 50
B55: 50 | C55: Ipswich | D55: IP | E55: 0.0711 | F55: 0.0787 | G55: 0.1262 | H55: =INDEX(E55:G55,,control!$C$10) -> 0.0711 | J55: 0.0711 | K55: S_IP | L55: 54
B56: 51 | C56: Inverness | D56: IV | E56: 0.1914 | F56: 0.1725 | G56: 0.1938 | H56: =INDEX(E56:G56,,control!$C$10) -> 0.1914 | J56: 0.1914 | K56: S_IV | L56: 1
B57: 52 | C57: Kilmarnock | D57: KA | E57: 0.0915 | F57: 0.1631 | G57: 0.0086 | H57: =INDEX(E57:G57,,control!$C$10) -> 0.0915 | J57: 0.0915 | K57: S_KA | L57: 106
B58: 53 | C58: Kingston upon Thames | D58: KT | E58: 0.1841 | F58: 0.1332 | G58: 0.1475 | H58: =INDEX(E58:G58,,control!$C$10) -> 0.1841 | J58: 0.1841 | K58: S_KT | L58: 25
B59: 54 | C59: Kirkwall | D59: KW | E59: 0.1613 | F59: 0.0389 | G59: 0.0045 | H59: =INDEX(E59:G59,,control!$C$10) -> 0.1613 | J59: 0.1613 | K59: S_KW | L59: 117
B60: 55 | C60: Kirkcaldy | D60: KY | E60: 0.0882 | F60: 0.1058 | G60: 0.0437 | H60: =INDEX(E60:G60,,control!$C$10) -> 0.0882 | J60: 0.0882 | K60: S_KY | L60: 110
B61: 56 | C61: Liverpool | D61: L | E61: 0.0919 | F61: 0.1958 | G61: 0.0575 | H61: =INDEX(E61:G61,,control!$C$10) -> 0.0919 | J61: 0.0919 | K61: S_L | L61: 81
B62: 57 | C62: Lancaster | D62: LA | E62: 0.1116 | F62: 0.0284 | G62: 0.1574 | H62: =INDEX(E62:G62,,control!$C$10) -> 0.1116 | J62: 0.1116 | K62: S_LA | L62: 99
B63: 58 | C63: Llandrindod Wells | D63: LD | E63: 0.0037 | F63: 0.173 | G63: 0.103 | H63: =INDEX(E63:G63,,control!$C$10) -> 0.0037 | J63: 0.0037 | K63: S_LD | L63: 70
B64: 59 | C64: Leicester | D64: LE | E64: 0.1665 | F64: 0.1892 | G64: 0.0948 | H64: =INDEX(E64:G64,,control!$C$10) -> 0.1665 | J64: 0.1665 | K64: S_LE | L64: 60
B65: 60 | C65: Llandudno | D65: LL | E65: 0.0864 | F65: 0.1173 | G65: 0.1881 | H65: =INDEX(E65:G65,,control!$C$10) -> 0.0864 | J65: 0.0864 | K65: S_LL | L65: 77
B66: 61 | C66: Lincoln | D66: LN | E66: 0.1091 | F66: 0.0186 | G66: 0.0149 | H66: =INDEX(E66:G66,,control!$C$10) -> 0.1091 | J66: 0.1091 | K66: S_LN | L66: 63
B67: 62 | C67: Leeds | D67: LS | E67: 0.0154 | F67: 0.1255 | G67: 0.133 | H67: =INDEX(E67:G67,,control!$C$10) -> 0.0154 | J67: 0.0154 | K67: S_LS | L67: 92
B68: 63 | C68: Luton | D68: LU | E68: 0.174 | F68: 0.0676 | G68: 0.0289 | H68: =INDEX(E68:G68,,control!$C$10) -> 0.174 | J68: 0.174 | K68: S_LU | L68: 46
B69: 64 | C69: Manchester | D69: M | E69: 0.0808 | F69: 0.0861 | G69: 0.1246 | H69: =INDEX(E69:G69,,control!$C$10) -> 0.0808 | J69: 0.0808 | K69: S_M | L69: 82
B70: 65 | C70: Medway | D70: ME | E70: 0.0779 | F70: 0.0127 | G70: 0.0819 | H70: =INDEX(E70:G70,,control!$C$10) -> 0.0779 | J70: =H70 -> 0.0779 | K70: S_ME | L70: 16
B71: =B70+1 -> 66 | C71: Milton Keynes | D71: MK | E71: 0.1287 | F71: 0.162 | G71: 0.0813 | H71: =INDEX(E71:G71,,control!$C$10) -> 0.1287 | J71: 0.1287 | K71: S_MK | L71: 45
B72: 67 | C72: Motherwell | D72: ML | E72: 0.1161 | F72: 0.0764 | G72: 0.1474 | H72: =INDEX(E72:G72,,control!$C$10) -> 0.1161 | J72: 0.1161 | K72: S_ML | L72: 107
B73: 68 | C73: London N | D73: N | E73: 0.0711 | F73: 0.1984 | G73: 0.0518 | H73: =INDEX(E73:G73,,control!$C$10) -> 0.0711 | J73: 0.0711 | K73: S_N | L73: 122
B74: 69 | C74: Newcastle upon Tyne | D74: NE | E74: 0.1413 | F74: 0.007 | G74: 0.1464 | H74: =INDEX(E74:G74,,control!$C$10) -> 0.1413 | J74: 0.1413 | K74: S_NE | L74: 103
B75: 70 | C75: Nottingham | D75: NG | E75: 0.0152 | F75: 0.1616 | G75: 0.1764 | H75: =INDEX(E75:G75,,control!$C$10) -> 0.0152 | J75: 0.0152 | K75: S_NG | L75: 62
B76: 71 | C76: Northampton | D76: NN | E76: 0.1437 | F76: 0.0512 | G76: 0.1921 | H76: =INDEX(E76:G76,,control!$C$10) -> 0.1437 | J76: 0.1437 | K76: S_NN | L76: 44
B77: 72 | C77: Newport | D77: NP | E77: 0.1954 | F77: 0.1281 | G77: 0.1032 | H77: =INDEX(E77:G77,,control!$C$10) -> 0.1954 | J77: 0.1954 | K77: S_NP | L77: 67
B78: 73 | C78: Norwich | D78: NR | E78: 0.0575 | F78: 0.1812 | G78: 0.1893 | H78: =INDEX(E78:G78,,control!$C$10) -> 0.0575 | J78: 0.0575 | K78: S_NR | L78: 56
B79: 74 | C79: London NW | D79: NW | E79: 0.108 | F79: 0.0763 | G79: 0.0766 | H79: =INDEX(E79:G79,,control!$C$10) -> 0.108 | J79: 0.108 | K79: S_NW | L79: 33
B80: 75 | C80: Oldham | D80: OL | E80: 0.1286 | F80: 0.1533 | G80: 0.1637 | H80: =INDEX(E80:G80,,control!$C$10) -> 0.1286 | J80: 0.1286 | K80: S_OL | L80: 83
B81: 76 | C81: Oxford | D81: OX | E81: 0.1575 | F81: 0.1269 | G81: 0.0974 | H81: =INDEX(E81:G81,,control!$C$10) -> 0.1575 | J81: 0.1575 | K81: S_OX | L81: 40
B82: 77 | C82: Paisley | D82: PA | E82: 0.0384 | F82: 0.111 | G82: 0.0957 | H82: =INDEX(E82:G82,,control!$C$10) -> 0.0384 | J82: 0.0384 | K82: S_PA | L82: 112
B83: 78 | C83: Peterborough | D83: PE | E83: 0.1743 | F83: 0.0487 | G83: 0.1585 | H83: =INDEX(E83:G83,,control!$C$10) -> 0.1743 | J83: 0.1743 | K83: S_PE | L83: 57
B84: 79 | C84: Perth | D84: PH | E84: 0.1282 | F84: 0.0662 | G84: 0.1192 | H84: =INDEX(E84:G84,,control!$C$10) -> 0.1282 | J84: 0.1282 | K84: S_PH | L84: 115
B85: 80 | C85: Plymouth | D85: PL | E85: 0.0457 | F85: 0.1837 | G85: 0.069 | H85: =INDEX(E85:G85,,control!$C$10) -> 0.0457 | J85: 0.0457 | K85: S_PL | L85: 120
B86: 81 | C86: Portsmouth | D86: PO | E86: 0.0983 | F86: 0.0158 | G86: 0.1216 | H86: =INDEX(E86:G86,,control!$C$10) -> 0.0983 | J86: 0.0983 | K86: S_PO | L86: 12
B87: 82 | C87: Preston | D87: PR | E87: 0.1945 | F87: 0.1994 | G87: 0.0552 | H87: =INDEX(E87:G87,,control!$C$10) -> 0.1945 | J87: 0.1945 | K87: S_PR | L87: 89
B88: 83 | C88: Reading | D88: RG | E88: 0.1826 | F88: 0.1545 | G88: 0.1061 | H88: =INDEX(E88:G88,,control!$C$10) -> 0.1826 | J88: 0.1826 | K88: S_RG | L88: 23
B89: 84 | C89: Redhill | D89: RH | E89: 0.1364 | F89: 0.101 | G89: 0.0075 | H89: =INDEX(E89:G89,,control!$C$10) -> 0.1364 | J89: 0.1364 | K89: S_RH | L89: 22
B90: 85 | C90: Romford | D90: RM | E90: 0.0918 | F90: 0.1352 | G90: 0.0236 | H90: =INDEX(E90:G90,,control!$C$10) -> 0.0918 | J90: 0.0918 | K90: S_RM | L90: 51
B91: 86 | C91: Sheffield | D91: S | E91: 0.1382 | F91: 0.0481 | G91: 0.0681 | H91: =INDEX(E91:G91,,control!$C$10) -> 0.1382 | J91: 0.1382 | K91: S_S | L91: 65
B92: 87 | C92: Swansea | D92: SA | E92: 0.1691 | F92: 0.1456 | G92: 0.0799 | H92: =INDEX(E92:G92,,control!$C$10) -> 0.1691 | J92: 0.1691 | K92: S_SA | L92: 69
B93: 88 | C93: London SE | D93: SE | E93: 0.1508 | F93: 0.0982 | G93: 0.1606 | H93: =INDEX(E93:G93,,control!$C$10) -> 0.1508 | J93: 0.1508 | K93: S_SE | L93: 30
B94: 89 | C94: Stevenage | D94: SG | E94: 0.0658 | F94: 0.1625 | G94: 0.1591 | H94: =INDEX(E94:G94,,control!$C$10) -> 0.0658 | J94: 0.0658 | K94: S_SG | L94: 48
B95: 90 | C95: Stockport | D95: SK | E95: 0.0954 | F95: 0.1591 | G95: 0.1369 | H95: =INDEX(E95:G95,,control!$C$10) -> 0.0954 | J95: 0.0954 | K95: S_SK | L95: 79
B96: 91 | C96: Slough | D96: SL | E96: 0.0088 | F96: 0.1402 | G96: 0.1644 | H96: =INDEX(E96:G96,,control!$C$10) -> 0.0088 | J96: 0.0088 | K96: S_SL | L96: 38
B97: 92 | C97: Sutton | D97: SM | E97: 0.0782 | F97: 0.0712 | G97: 0.101 | H97: =INDEX(E97:G97,,control!$C$10) -> 0.0782 | J97: 0.0782 | K97: S_SM | L97: 27
B98: 93 | C98: Swindon | D98: SN | E98: 0.1179 | F98: 0.0092 | G98: 0.1417 | H98: =INDEX(E98:G98,,control!$C$10) -> 0.1179 | J98: 0.1179 | K98: S_SN | L98: 20
B99: 94 | C99: Southampton | D99: SO | E99: 0.0125 | F99: 0.1827 | G99: 0.0765 | H99: =INDEX(E99:G99,,control!$C$10) -> 0.0125 | J99: 0.0125 | K99: S_SO | L99: 2
B100: 95 | C100: Salisbury | D100: SP | E100: 0.1899 | F100: 0.0596 | G100: 0.0688 | H100: =INDEX(E100:G100,,control!$C$10) -> 0.1899 | J100: 0.1899 | K100: S_SP | L100: 19
B101: 96 | C101: Sunderland | D101: SR | E101: 0.1215 | F101: 0.0654 | G101: 0.167 | H101: =INDEX(E101:G101,,control!$C$10) -> 0.1215 | J101: 0.1215 | K101: S_SR | L101: 102
B102: 97 | C102: Southend-on-Sea | D102: SS | E102: 0.1156 | F102: 0.0528 | G102: 0.0067 | H102: =INDEX(E102:G102,,control!$C$10) -> 0.1156 | J102: =H102 -> 0.1156 | K102: S_SS | L102: 52
B103: =B102+1 -> 98 | C103: Stoke-on-Trent | D103: ST | E103: 0.0937 | F103: 0.1767 | G103: 0.0023 | H103: =INDEX(E103:G103,,control!$C$10) -> 0.0937 | J103: 0.0937 | K103: S_ST | L103: 75
B104: 99 | C104: London SW | D104: SW | E104: 0.1996 | F104: 0.1695 | G104: 0.0487 | H104: =INDEX(E104:G104,,control!$C$10) -> 0.1996 | J104: 0.1996 | K104: S_SW | L104: 31
B105: 100 | C105: Shrewsbury | D105: SY | E105: 0.1188 | F105: 0.1798 | G105: 0.1987 | H105: =INDEX(E105:G105,,control!$C$10) -> 0.1188 | J105: 0.1188 | K105: S_SY | L105: 71
B106: 101 | C106: Taunton | D106: TA | E106: 0.0324 | F106: 0.0418 | G106: 0.1055 | H106: =INDEX(E106:G106,,control!$C$10) -> 0.0324 | J106: 0.0324 | K106: S_TA | L106: 9
B107: 102 | C107: Tweeddale | D107: TD | E107: 0.0267 | F107: 0.0485 | G107: 0.177 | H107: =INDEX(E107:G107,,control!$C$10) -> 0.0267 | J107: 0.0267 | K107: S_TD | L107: 105
B108: 103 | C108: Telford | D108: TF | E108: 0.0952 | F108: 0.1763 | G108: 0.0102 | H108: =INDEX(E108:G108,,control!$C$10) -> 0.0952 | J108: 0.0952 | K108: S_TF | L108: 74
B109: 104 | C109: Tonbridge | D109: TN | E109: 0.1969 | F109: 0.1739 | G109: 0.0144 | H109: =INDEX(E109:G109,,control!$C$10) -> 0.1969 | J109: 0.1969 | K109: S_TN | L109: 14
B110: 105 | C110: Torquay | D110: TQ | E110: 0.0609 | F110: 0.1558 | G110: 0.097 | H110: =INDEX(E110:G110,,control!$C$10) -> 0.0609 | J110: 0.0609 | K110: S_TQ | L110: 7
B111: 106 | C111: Truro | D111: TR | E111: 0.0453 | F111: 0.0228 | G111: 0.0532 | H111: =INDEX(E111:G111,,control!$C$10) -> 0.0453 | J111: 0.0453 | K111: S_TR | L111: 6
B112: 107 | C112: Teesside | D112: TS | E112: 0.047 | F112: 0.1966 | G112: 0.1796 | H112: =INDEX(E112:G112,,control!$C$10) -> 0.047 | J112: 0.047 | K112: S_TS | L112: 96
B113: 108 | C113: Twickenham | D113: TW | E113: 0.0317 | F113: 0.1647 | G113: 0.1027 | H113: =INDEX(E113:G113,,control!$C$10) -> 0.0317 | J113: 0.0317 | K113: S_TW | L113: 24
B114: 109 | C114: Uxbridge | D114: UB | E114: 0.1251 | F114: 0.1533 | G114: 0.1107 | H114: =INDEX(E114:G114,,control!$C$10) -> 0.1251 | J114: 0.1251 | K114: S_UB | L114: 35
B115: 110 | C115: London W | D115: W | E115: 0.0107 | F115: 0.0765 | G115: 0.1503 | H115: =INDEX(E115:G115,,control!$C$10) -> 0.0107 | J115: 0.0107 | K115: S_W | L115: 32
B116: 111 | C116: Warrington | D116: WA | E116: 0.0217 | F116: 0.0816 | G116: 0.1276 | H116: =INDEX(E116:G116,,control!$C$10) -> 0.0217 | J116: 0.0217 | K116: S_WA | L116: 80
B117: 112 | C117: London WC | D117: WC | E117: 0.1768 | F117: 0.0132 | G117: 0.1599 | H117: =INDEX(E117:G117,,control!$C$10) -> 0.1768 | J117: 0.1768 | K117: S_WC | L117: 124
B118: 113 | C118: Watford | D118: WD | E118: 0.1907 | F118: 0.1357 | G118: 0.0203 | H118: =INDEX(E118:G118,,control!$C$10) -> 0.1907 | J118: 0.1907 | K118: S_WD | L118: 36
B119: 114 | C119: Wakefield | D119: WF | E119: 0.121 | F119: 0.0776 | G119: 0.0537 | H119: =INDEX(E119:G119,,control!$C$10) -> 0.121 | J119: 0.121 | K119: S_WF | L119: 88
B120: 115 | C120: Wigan | D120: WN | E120: 0.1733 | F120: 0.142 | G120: 0.1658 | H120: =INDEX(E120:G120,,control!$C$10) -> 0.1733 | J120: 0.1733 | K120: S_WN | L120: 84
B121: 116 | C121: Worcester | D121: WR | E121: 0.1873 | F121: 0.1288 | G121: 0.0592 | H121: =INDEX(E121:G121,,control!$C$10) -> 0.1873 | J121: 0.1873 | K121: S_WR | L121: 43
B122: 117 | C122: Walsall | D122: WS | E122: 0.0943 | F122: 0.0948 | G122: 0.0033 | H122: =INDEX(E122:G122,,control!$C$10) -> 0.0943 | J122: 0.0943 | K122: S_WS | L122: 61
B123: 118 | C123: Wolverhampton | D123: WV | E123: 0.1639 | F123: 0.07 | G123: 0.0987 | H123: =INDEX(E123:G123,,control!$C$10) -> 0.1639 | J123: 0.1639 | K123: S_WV | L123: 73
B124: 119 | C124: York | D124: YO | E124: 0.1788 | F124: 0.1323 | G124: 0.0511 | H124: =INDEX(E124:G124,,control!$C$10) -> 0.1788 | J124: 0.1788 | K124: S_YO | L124: 94
B125: 120 | C125: Lerwick | D125: ZE | E125: 0.0324 | F125: 0.1212 | G125: 0.1141 | H125: =INDEX(E125:G125,,control!$C$10) -> 0.0324 | J125: 0.0324 | K125: S_ZE | L125: 4
B126: 121 | D126: BT | E126: 0.067 | F126: 0.0497 | G126: 0.0564 | H126: =INDEX(E126:G126,,control!$C$10) -> 0.067 | J126: 0.067 | K126: S_BT | L126: 3
B127: 122 | D127: GY | E127: 0.0724 | F127: 0.0676 | G127: 0.127 | H127: =INDEX(E127:G127,,control!$C$10) -> 0.0724 | J127: 0.0724 | K127: S_GY | L127: 119
B128: 123 | D128: IM | E128: 0.131 | F128: 0.0214 | G128: 0.0028 | H128: =INDEX(E128:G128,,control!$C$10) -> 0.131 | J128: 0.131 | K128: S_IM | L128: 5
B129: 124 | D129: JE | E129: 0.0017 | F129: 0.0079 | G129: 0.0531 | H129: =INDEX(E129:G129,,control!$C$10) -> 0.0017 | J129: 0.0017 | K129: S_JE | L129: 116
B130: 125 | C130: London WC | D130: WC | E130: =INDEX(E$6:E$129,MATCH($D130,$D$6:$D$129,0),1) -> 0.1768 | F130: 0.0132 | G130: 0.1599 | H130: =INDEX(E130:G130,,control!$C$10) -> 0.1768 | J130: 0.1768 | K130: S_WC_M | L130: 145 | M130: Magnifier Shapes London Area (values are calculated by formulas)
B131: 126 | C131: London EC | D131: EC | E131: 0.1347 | F131: 0.1901 | G131: 0.0978 | H131: =INDEX(E131:G131,,control!$C$10) -> 0.1347 | J131: 0.1347 | K131: S_EC_M | L131: 144
B132: 127 | C132: London N | D132: N | E132: 0.0711 | F132: 0.1984 | G132: 0.0518 | H132: =INDEX(E132:G132,,control!$C$10) -> 0.0711 | J132: 0.0711 | K132: S_N_M | L132: 143
B133: 128 | C133: London E | D133: E | E133: 0.0416 | F133: 0.1572 | G133: 0.0343 | H133: =INDEX(E133:G133,,control!$C$10) -> 0.0416 | J133: 0.0416 | K133: S_E_M | L133: 142
B134: 129 | C134: Romford | D134: RM | E134: 0.0918 | F134: 0.1352 | G134: 0.0236 | H134: =INDEX(E134:G134,,control!$C$10) -> 0.0918 | J134: =H134 -> 0.0918 | K134: S_RM_M | L134: 141
B135: =B134+1 -> 130 | C135: Ilford | D135: IG | E135: 0.1138 | F135: 0.077 | G135: 0.1595 | H135: =INDEX(E135:G135,,control!$C$10) -> 0.1138 | J135: 0.1138 | K135: S_IG_M | L135: 140
B136: 131 | C136: Enfield | D136: EN | E136: 0.0355 | F136: 0.0768 | G136: 0.0285 | H136: =INDEX(E136:G136,,control!$C$10) -> 0.0355 | J136: 0.0355 | K136: S_EN_M | L136: 138
B137: 132 | C137: Watford | D137: WD | E137: 0.1907 | F137: 0.1357 | G137: 0.0203 | H137: =INDEX(E137:G137,,control!$C$10) -> 0.1907 | J137: 0.1907 | K137: S_WD_M | L137: 137
B138: 133 | C138: Uxbridge | D138: UB | E138: 0.1251 | F138: 0.1533 | G138: 0.1107 | H138: =INDEX(E138:G138,,control!$C$10) -> 0.1251 | J138: 0.1251 | K138: S_UB_M | L138: 136
B139: 134 | C139: Harrow | D139: HA | E139: 0.0828 | F139: 0.02 | G139: 0.0202 | H139: =INDEX(E139:G139,,control!$C$10) -> 0.0828 | J139: 0.0828 | K139: S_HA_M | L139: 135
B140: 135 | C140: London NW | D140: NW | E140: 0.108 | F140: 0.0763 | G140: 0.0766 | H140: =INDEX(E140:G140,,control!$C$10) -> 0.108 | J140: 0.108 | K140: S_NW_M | L140: 134
B141: 136 | C141: London W | D141: W | E141: 0.0107 | F141: 0.0765 | G141: 0.1503 | H141: =INDEX(E141:G141,,control!$C$10) -> 0.0107 | J141: 0.0107 | K141: S_W_M | L141: 133
B142: 137 | C142: London SW | D142: SW | E142: 0.1996 | F142: 0.1695 | G142: 0.0487 | H142: =INDEX(E142:G142,,control!$C$10) -> 0.1996 | J142: 0.1996 | K142: S_SW_M | L142: 132
B143: 138 | C143: London SE | D143: SE | E143: 0.1508 | F143: 0.0982 | G143: 0.1606 | H143: =INDEX(E143:G143,,control!$C$10) -> 0.1508 | J143: 0.1508 | K143: S_SE_M | L143: 131
B144: 139 | C144: Dartford | D144: DA | E144: 0.0697 | F144: 0.0146 | G144: 0.1815 | H144: =INDEX(E144:G144,,control!$C$10) -> 0.0697 | J144: 0.0697 | K144: S_DA_M | L144: 130
B145: 140 | C145: Bromley | D145: BR | E145: 0.1402 | F145: 0.1022 | G145: 0.0869 | H145: =INDEX(E145:G145,,control!$C$10) -> 0.1402 | J145: 0.1402 | K145: S_BR_M | L145: 129
B146: 141 | C146: Sutton | D146: SM | E146: 0.0782 | F146: 0.0712 | G146: 0.101 | H146: =INDEX(E146:G146,,control!$C$10) -> 0.0782 | J146: 0.0782 | K146: S_SM_M | L146: 128
B147: 142 | C147: Croydon | D147: CR | E147: 0.1142 | F147: 0.1602 | G147: 0.0992 | H147: =INDEX(E147:G147,,control!$C$10) -> 0.1142 | J147: 0.1142 | K147: S_CR_M | L147: 127
B148: 143 | C148: Kingston upon Thames | D148: KT | E148: 0.1841 | F148: 0.1332 | G148: 0.1475 | H148: =INDEX(E148:G148,,control!$C$10) -> 0.1841 | J148: 0.1841 | K148: S_KT_M | L148: 126
B149: 144 | C149: Twickenham | D149: TW | E149: 0.0317 | F149: 0.1647 | G149: 0.1027 | H149: =INDEX(E149:G149,,control!$C$10) -> 0.0317 | J149: 0.0317 | K149: S_TW_M | L149: 125
B150: 145 | C150: Slough | D150: SL | E150: =INDEX(E$6:E$129,MATCH($D150,$D$6:$D$129,0),1) -> 0.0088 | F150: 0.1402 | G150: 0.1644 | H150: =INDEX(E150:G150,,control!$C$10) -> 0.0088 | J150: 0.0088 | K150: S_SL_M | L150: 139
B151: 146 | C151: Harrogate | D151: HG | E151: 0.0785 | F151: 0.0042 | G151: 0.0765 | H151: =INDEX(E151:G151,,control!$C$10) -> 0.0785 | J151: 0.0785 | K151: S_HG_M | L151: 163 | M151: Magnifier Shapes Manchester Area (values are calculated by formulas)
B152: 147 | C152: Fylde | D152: FY | E152: 0.0943 | F152: 0.1799 | G152: 0.0289 | H152: =INDEX(E152:G152,,control!$C$10) -> 0.0943 | J152: 0.0943 | K152: S_FY_M | L152: 164
B153: 148 | C153: Leeds | D153: LS | E153: 0.0154 | F153: 0.1255 | G153: 0.133 | H153: =INDEX(E153:G153,,control!$C$10) -> 0.0154 | J153: 0.0154 | K153: S_LS_M | L153: 162
B154: 149 | C154: Bradford | D154: BD | E154: 0.0539 | F154: 0.0854 | G154: 0.0432 | H154: =INDEX(E154:G154,,control!$C$10) -> 0.0539 | J154: 0.0539 | K154: S_BD_M | L154: 161
B155: 150 | C155: Blackburn | D155: BB | E155: 0.0941 | F155: 0.1192 | G155: 0.1521 | H155: =INDEX(E155:G155,,control!$C$10) -> 0.0941 | J155: 0.0941 | K155: S_BB_M | L155: 160
B156: 151 | C156: Preston | D156: PR | E156: 0.1945 | F156: 0.1994 | G156: 0.0552 | H156: =INDEX(E156:G156,,control!$C$10) -> 0.1945 | J156: 0.1945 | K156: S_PR_M | L156: 159
B157: 152 | C157: Wakefield | D157: WF | E157: 0.121 | F157: 0.0776 | G157: 0.0537 | H157: =INDEX(E157:G157,,control!$C$10) -> 0.121 | J157: 0.121 | K157: S_WF_M | L157: 158
B158: 153 | C158: Halifax | D158: HX | E158: 0.0856 | F158: 0.0449 | G158: 0.1351 | H158: =INDEX(E158:G158,,control!$C$10) -> 0.0856 | J158: 0.0856 | K158: S_HX_M | L158: 157
B159: 154 | C159: Huddersfield | D159: HD | E159: 0.0625 | F159: 0.1652 | G159: 0.0571 | H159: =INDEX(E159:G159,,control!$C$10) -> 0.0625 | J159: 0.0625 | K159: S_HD_M | L159: 156
B160: 155 | C160: Bolton | D160: BL | E160: 0.1145 | F160: 0.0743 | G160: 0.1668 | H160: =INDEX(E160:G160,,control!$C$10) -> 0.1145 | J160: 0.1145 | K160: S_BL_M | L160: 155
B161: 156 | C161: Wigan | D161: WN | E161: 0.1733 | F161: 0.142 | G161: 0.1658 | H161: =INDEX(E161:G161,,control!$C$10) -> 0.1733 | J161: 0.1733 | K161: S_WN_M | L161: 154
B162: 157 | C162: Oldham | D162: OL | E162: 0.1286 | F162: 0.1533 | G162: 0.1637 | H162: =INDEX(E162:G162,,control!$C$10) -> 0.1286 | J162: 0.1286 | K162: S_OL_M | L162: 153
B163: 158 | C163: Manchester | D163: M | E163: 0.0808 | F163: 0.0861 | G163: 0.1246 | H163: =INDEX(E163:G163,,control!$C$10) -> 0.0808 | J163: 0.0808 | K163: S_M_M | L163: 152
B164: 159 | C164: Liverpool | D164: L | E164: 0.0919 | F164: 0.1958 | G164: 0.0575 | H164: =INDEX(E164:G164,,control!$C$10) -> 0.0919 | J164: 0.0919 | K164: S_L_M | L164: 151
B165: 160 | C165: Warrington | D165: WA | E165: 0.0217 | F165: 0.0816 | G165: 0.1276 | H165: =INDEX(E165:G165,,control!$C$10) -> 0.0217 | J165: 0.0217 | K165: S_WA_M | L165: 150
B166: 161 | C166: Stockport | D166: SK | E166: 0.0954 | F166: 0.1591 | G166: 0.1369 | H166: =INDEX(E166:G166,,control!$C$10) -> 0.0954 | J166: 0.0954 | K166: S_SK_M | L166: 149
B167: 162 | C167: Chester | D167: CH | E167: 0.0934 | F167: 0.0734 | G167: 0.1209 | H167: =INDEX(E167:G167,,control!$C$10) -> 0.0934 | J167: 0.0934 | K167: S_CH_M | L167: 148
B168: 163 | C168: Crewe | D168: CW | E168: 0.0012 | F168: 0.0046 | G168: 0.0327 | H168: =INDEX(E168:G168,,control!$C$10) -> 0.0012 | J168: 0.0012 | K168: S_CW_M | L168: 147
B169: 164 | C169: Sheffield | D169: S | E169: 0.1382 | F169: 0.0481 | G169: 0.0681 | H169: =INDEX(E169:G169,,control!$C$10) -> 0.1382 | J169: 0.1382 | K169: S_S_M | L169: 146

Sheet control
B2: Control
B4: Metrics | C4: =data!$E$5 -> Measure 1
C5: =data!$F$5 -> Measure 2 | F5: Select a color scale here
C6: =data!$G$5 -> Measure 3
F7: Recreate the shape index after you inserted a new map or added new shapes
B10: Selection | C10: 1
F12: 1 | G12: =F12+1 -> 2 | H12: =G12+1 -> 3 | I12: 4 | J12: 5 | K12: 6 | L12: 7 | M12: 8 | N12: 9 | O12: 10 | P12: 11 | Q12: 12 | R12: 13 | S12: 14 | T12: 15 | U12: 16 | V12: 17 | W12: 18 | X12: 19 | Y12: 20 | Z12: 21 | AA12: 22 | AB12: =AA12+1 -> 23
B13: Threshold | C13: RGB | D13: Legend | F13: =$C$26 -> Green Yellow Red | G13: =$C$27 -> Green to Pink | H13: =$C$28 -> Green to Purple | I13: =$C$29 -> Green to Brown | J13: =$C$30 -> Blue to Red | K13: =$C$31 -> Blue to Red Brown | L13: =$C$32 -> Brown to Purple | M13: =$C$33 -> Brown Blue Green | N13: =$C$34 -> Purple to Green | O13: =$C$35 -> Pink to Green | P13: =$C$36 -> Red to Blue | Q13: =$C$37 -> Red to Black | R13: =$C$38 -> Red Yellow Blue | S13: =$C$39 -> Spectral | T13: =$C$40 -> Red Yellow Green | U13: =$C$41 -> Light | V13: =$C$42 -> Pairwise | W13: =$C$43 -> Light to Dark Blue | X13: =$C$44 -> Light to Dark Red | Y13: =$C$45 -> Light to Dark Brown | Z13: =$C$46 -> Light to Dark Green | AA13: =$C$47 -> Light to Dark Yellow | AB13: =$C$48 -> Light Grey to Black
B14: 0.02 | C14: 3631104 | D14: ="0% to "&TEXT(B14,"0%") -> 0% to 2%
B15: 0.04 | C15: 5281818 | D15: =TEXT(B14,"0%")&" to "&TEXT(B15,"0%") -> 2% to 4%
B16: 0.06 | C16: 6536550 | D16: =TEXT(B15,"0%")&" to "&TEXT(B16,"0%") -> 4% to 6%
B17: 0.08 | C17: 7002534 | D17: 6% to 8%
B18: 0.1 | C18: 9170905 | D18: 8% to 10%
B19: 0.12 | C19: 9167102 | D19: 10% to 12%
B20: 0.14 | C20: 6401789 | D20: 12% to 14%
B21: 0.16 | C21: 4419060 | D21: 14% to 16%
B22: 0.18 | C22: 2568407 | D22: 16% to 18%
B23: 1 | C23: 2490533 | D23: =TEXT(B22,"0%")&" or more" -> 18% or more
F24: =IF(F$12=myColorScaleSelection,"▲","") -> ▲
F25: =IF(F$12=myColorScaleSelection,"Current Selection","") -> Current Selection
B26: Color Scales | C26: Green Yellow Red
C27: Green to Pink
C28: Green to Purple
C29: Green to Brown
C30: Blue to Red
C31: Blue to Red Brown
C32: Brown to Purple
C33: Brown Blue Green
C34: Purple to Green
C35: Pink to Green
C36: Red to Blue
C37: Red to Black
C38: Red Yellow Blue
C39: Spectral
C40: Red Yellow Green
C41: Light
C42: Pairwise
C43: Light to Dark Blue
C44: Light to Dark Red
C45: Light to Dark Brown
C46: Light to Dark Green
C47: Light to Dark Yellow
C48: Light Grey to Black
B50: Selection | C50: 1
B52: Show Status Bar | C52: TRUE
